bitfinex-derivatives/quotes_BTCF0:USTF0_20230402
["timestamp","ask_amount","ask_price","bid_price","bid_amount"]
[1680438807318,0.3007,28294.0,28293.0,0.45785898]
[1680438807526,0.3007,28294.0,28293.0,0.05]
[1680438807720,0.3007,28294.0,28286.0,0.3007]
[1680438807923,0.3007,28295.0,28286.0,0.3007]
[1680438808224,0.3007,28295.0,28287.0,0.05]
[1680438808620,0.05,28294.0,28287.0,0.05]
[1680438809228,0.052,28294.0,28287.0,0.05]
[1680438809420,0.002,28294.0,28287.0,0.05]
[1680438809620,0.001,28294.0,28287.0,0.05]
[1680438809822,0.051,28294.0,28287.0,0.05]
[1680438810727,0.001,28294.0,28287.0,0.05]
[1680438810931,0.051,28294.0,28287.0,0.05]
[1680438811130,0.001,28294.0,28287.0,0.05]
[1680438812029,0.051,28294.0,28287.0,0.05]
[1680438812228,0.001,28294.0,28287.0,0.05]
[1680438813224,0.404,28294.0,28287.0,0.05]
[1680438813433,0.3007,28290.0,28285.0,0.3007]
[1680438813730,0.05,28289.0,28286.0,0.05]
[1680438814029,0.3007,28291.0,28286.0,0.05]
[1680438814221,0.05,28290.0,28286.0,0.05]
[1680438814828,0.3007,28291.0,28286.0,0.05]
[1680438816433,0.003,28289.0,28286.0,0.05]
[1680438816934,0.053,28291.0,28286.0,0.05]
[1680438817433,0.003,28289.0,28286.0,0.05]
[1680438818736,0.003,28289.0,28287.0,0.3007]
[1680438818927,0.003,28291.0,28288.0,0.05]
[1680438819426,0.003,28289.0,28288.0,0.05]
[1680438819927,0.003,28291.0,28288.0,0.05]
[1680438820332,0.7007,28298.0,28288.0,0.05]
[1680438820333,0.003,28289.0,28288.0,0.05]
[1680438821034,0.003,28291.0,28288.0,0.05]
[1680438821630,0.003,28291.0,28290.0,0.3007]
[1680438822131,0.7007,28298.0,28290.0,0.3007]
[1680438822330,0.7007,28298.0,28288.0,0.05]
[1680438822537,0.7007,28298.0,28291.0,0.05]
[1680438823132,0.3007,28298.0,28291.0,0.05]
[1680438823637,0.3007,28298.0,28293.0,0.3007]
[1680438823835,0.3007,28298.0,28294.0,0.05]
[1680438824140,0.012,28297.0,28294.0,0.42851867]
[1680438825337,0.3197,28298.0,28294.0,0.42851867]
[1680438825826,0.012,28297.0,28294.0,0.42851867]
[1680438826223,0.3127,28298.0,28294.0,0.42851867]
[1680438826738,0.005,28297.0,28294.0,0.42851867]
[1680438828030,0.012,28298.0,28294.0,0.42851867]
[1680438828432,0.005,28297.0,28294.0,0.42851867]
[1680438829133,0.012,28298.0,28294.0,0.42851867]
[1680438829329,0.005,28297.0,28294.0,0.42851867]
[1680438830136,0.005,28297.0,28295.0,0.3007]
[1680438830437,0.005,28297.0,28296.0,0.05]
[1680438844250,0.005,28297.0,28295.0,0.3007]
[1680438845646,0.005,28297.0,28296.0,0.05]
[1680438846150,0.005,28297.0,28296.0,0.3507]
[1680438846752,0.005,28297.0,28296.0,0.05]
[1680438847547,0.005,28297.0,28296.0,0.3507]
[1680438850749,0.005,28297.0,28296.0,0.3007]
[1680438851053,0.005,28297.0,28292.0,0.08419813]
[1680438851244,0.005,28297.0,28290.0,0.10470445]
[1680438851245,0.055,28297.0,28293.0,0.05]
[1680438851444,0.005,28297.0,28293.0,0.05]
[1680438852653,0.012,28297.0,28293.0,0.05]
[1680438852849,0.062,28297.0,28293.0,0.05]
[1680438853147,0.062,28297.0,28292.0,0.05]
[1680438854540,0.012,28297.0,28292.0,0.05]
[1680438854744,0.062,28297.0,28292.0,0.05]
[1680438854942,0.05,28297.0,28292.0,0.05]
[1680438855253,0.012,28297.0,28292.0,0.05]
[1680438856049,0.062,28297.0,28291.0,0.08419813]
[1680438856255,0.3007,28295.0,28290.0,0.08419813]
[1680438856449,0.05,28294.0,28291.0,0.05]
[1680438856850,0.3007,28295.0,28291.0,0.05]
[1680438857452,0.3007,28295.0,28291.0,0.04976172]
[1680438864456,0.3007,28295.0,28290.0,0.13419813]
[1680438865958,0.3007,28295.0,28291.0,0.13419813]
[1680438868762,0.3007,28295.0,28291.0,0.05]
[1680438869260,0.3197,28295.0,28291.0,0.13419813]
[1680438869759,0.3127,28295.0,28291.0,0.13419813]
[1680438871162,0.3127,28295.0,28291.0,0.05]
[1680438871353,0.3127,28295.0,28291.0,0.13419813]
[1680438871550,0.3127,28295.0,28290.0,0.13419813]
[1680438873056,0.3127,28295.0,28292.0,0.3007]
[1680438873257,0.3127,28295.0,28293.0,0.05]
[1680438873656,0.012,28295.0,28293.0,0.05]
[1680438876064,0.001,28295.0,28293.0,0.05]
[1680438876964,0.05,28298.0,28293.0,0.05]
[1680438878466,0.05,28298.0,28292.0,0.05]
[1680438878664,0.069,28298.0,28292.0,0.05]
[1680438878964,0.075,28298.0,28292.0,0.05]
[1680438879355,0.05,28298.0,28292.0,0.05]
[1680438879555,0.075,28298.0,28292.0,0.05]
[1680438881664,0.075,28298.0,28291.0,0.08419813]
[1680438882272,0.05,28298.0,28291.0,0.08419813]
[1680438882464,0.075,28298.0,28291.0,0.08419813]
[1680438882668,0.075,28298.0,28292.0,0.05]
[1680438883071,0.05,28298.0,28292.0,0.05]
[1680438883272,0.077,28298.0,28292.0,0.05]
[1680438883875,0.027,28298.0,28292.0,0.05]
[1680438884579,0.05,28298.0,28292.0,0.05]
[1680438884771,0.075,28298.0,28292.0,0.05]
[1680438885578,0.019,28298.0,28292.0,0.05]
[1680438885776,0.069,28298.0,28292.0,0.05]
[1680438885974,0.075,28298.0,28292.0,0.05]
[1680438886372,0.025,28298.0,28292.0,0.05]
[1680438887079,0.019,28298.0,28292.0,0.05]
[1680438887379,0.069,28298.0,28292.0,0.05]
[1680438887674,0.019,28298.0,28292.0,0.05]
[1680438887879,0.019,28298.0,28292.0,0.43489813]
[1680438894880,0.019,28298.0,28294.0,0.05]
[1680438896287,0.05,28297.0,28294.0,0.05]
[1680438896885,0.019,28298.0,28294.0,0.05]
[1680438897187,0.019,28298.0,28295.0,0.3007]
[1680438897386,0.012,28297.0,28296.0,0.05]
[1680438897885,0.019,28298.0,28294.0,0.05]
[1680438899485,0.05,28301.0,28294.0,0.05]
[1680438899486,0.012,28297.0,28294.0,0.05]
[1680438899887,0.3007,28299.0,28294.0,0.05]
[1680438900084,0.069,28298.0,28293.0,0.13419813]
[1680438900790,0.005,28297.0,28294.0,0.40240813]
[1680438900990,0.005,28297.0,28295.0,0.05]
[1680438901588,0.005,28297.0,28294.0,0.40240813]
[1680438902188,0.062,28298.0,28294.0,0.40240813]
[1680438902588,0.005,28297.0,28294.0,0.40240813]
[1680438903986,0.012,28298.0,28294.0,0.40240813]
[1680438904191,0.005,28297.0,28294.0,0.40240813]
[1680438904589,0.005,28297.0,28295.0,0.05]
[1680438906790,0.002366,28297.0,28295.0,0.05]
[1680438906988,0.002366,28297.0,28295.0,0.3007]
[1680438907191,0.002366,28297.0,28296.0,0.05]
[1680438907986,0.002366,28297.0,28295.0,0.3007]
[1680438908185,0.005,28297.0,28296.0,0.05]
[1680438909195,0.005,28297.0,28295.0,0.3007]
[1680438909690,0.005,28297.0,28294.0,0.08419813]
[1680438910891,0.3007,28296.0,28292.0,0.08419813]
[1680438911090,0.3007,28296.0,28291.0,0.08419813]
[1680438911389,0.05,28295.0,28291.0,0.08419813]
[1680438912091,0.05,28295.0,28291.0,0.08619813]
[1680438912401,0.05,28295.0,28291.0,0.08419813]
[1680438912687,0.051,28295.0,28291.0,0.08719813]
[1680438913692,0.05,28295.0,28291.0,0.08419813]
[1680438913992,0.068,28295.0,28291.0,0.08419813]
[1680438915383,0.068,28295.0,28290.0,0.08419813]
[1680438915582,0.068,28295.0,28290.0,0.13419813]
[1680438915791,0.3007,28293.0,28289.0,0.08419813]
[1680438916093,0.05,28292.0,28288.0,0.08419813]
[1680438916294,0.05,28292.0,28287.0,0.08419813]
[1680438916492,0.05,28292.0,28285.0,0.10470445]
[1680438916493,0.05,28292.0,28286.0,0.08419813]
[1680438917094,0.05,28292.0,28288.0,0.002]
[1680438917390,0.047354,28292.0,28287.0,0.05]
[1680438917594,0.059354,28292.0,28287.0,0.05]
[1680438917793,0.059354,28292.0,28286.0,0.13419813]
[1680438917794,0.059354,28292.0,28286.0,0.08419813]
[1680438918093,0.3007,28289.0,28286.0,0.08419813]
[1680438918298,0.05,28288.0,28286.0,0.08419813]
[1680438918997,0.3007,28289.0,28286.0,0.08419813]
[1680438919885,0.3017,28289.0,28286.0,0.08719813]
[1680438920494,0.3017,28289.0,28286.0,0.003]
[1680438925804,0.3017,28289.0,28285.0,0.05]
[1680438927105,0.443278,28287.0,28285.0,0.05]
[1680438927805,0.443278,28287.0,28284.0,0.01122631]
[1680438928305,0.445278,28287.0,28284.0,0.01122631]
[1680438928898,0.445278,28287.0,28283.0,0.14005745]
[1680438929705,0.445278,28287.0,28283.0,0.05]
[1680438929908,0.05,28286.0,28281.0,0.31151112]
[1680438930298,0.445278,28287.0,28281.0,0.31151112]
[1680438932603,0.05,28286.0,28281.0,0.31151112]
[1680438933105,0.445278,28287.0,28281.0,0.31151112]
[1680438933301,0.002,28287.0,28285.0,0.06344188]
[1680438934509,0.3007,28289.0,28285.0,0.06344188]
[1680438934701,0.003,28286.0,28285.0,0.06344188]
[1680438935103,0.002,28287.0,28285.0,0.06344188]
[1680438935610,0.003,28286.0,28285.0,0.06344188]
[1680438936008,0.05,28288.0,28285.0,0.06344188]
[1680438936309,0.002,28287.0,28285.0,0.06344188]
[1680438936808,0.05,28285.0,28284.0,0.06344188]
[1680438937209,0.05,28285.0,28284.0,0.06342804]
[1680438937516,0.3037,28286.0,28284.0,0.06342804]
[1680438937810,0.053,28285.0,28284.0,0.06342804]
[1680438938010,0.003,28285.0,28284.0,0.06342804]
[1680438938813,0.003,28285.0,28283.0,0.08419813]
[1680438940212,0.053,28285.0,28283.0,0.08419813]
[1680438940414,0.003,28285.0,28283.0,0.08419813]
[1680438941816,0.003,28285.0,28284.0,0.05]
[1680438942814,0.3007,28286.0,28284.0,0.05]
[1680438943011,0.003,28285.0,28284.0,0.05]
[1680438944109,0.003,28285.0,28283.0,0.08419813]
[1680438944517,0.003,28285.0,28284.0,0.05]
[1680438945114,0.003,28285.0,28283.0,0.08419813]
[1680438946522,0.053,28285.0,28283.0,0.08419813]
[1680438946714,0.001,28285.0,28283.0,0.08419813]
[1680438947022,0.051,28285.0,28283.0,0.08419813]
[1680438947422,0.001,28285.0,28283.0,0.08419813]
[1680438949621,0.001,28285.0,28284.0,0.06345493]
[1680438952020,0.051,28285.0,28283.0,0.06345493]
[1680438954227,0.051,28285.0,28282.0,0.06345493]
[1680438954427,0.3007,28283.0,28282.0,0.06345493]
[1680438954729,0.001,28285.0,28282.0,0.06345493]
[1680438955025,0.051,28285.0,28282.0,0.06345493]
[1680438955226,0.002,28283.0,28282.0,0.06345493]
[1680438955420,0.002,28283.0,28281.0,0.13419813]
[1680438955620,0.051,28285.0,28281.0,0.13419813]
[1680438955926,0.051,28285.0,28283.0,0.06351396]
[1680438956226,0.3007,28286.0,28282.0,0.06351396]
[1680438956426,0.3007,28286.0,28283.0,0.05]
[1680438956925,0.05,28285.0,28282.0,0.06351396]
[1680438957426,0.051,28285.0,28283.0,0.06351396]
[1680438958528,0.051,28285.0,28282.0,0.06351396]
[1680438964228,0.0508668,28285.0,28282.0,0.06351396]
[1680438967436,0.0508668,28285.0,28281.0,0.06351396]
[1680438969328,0.0498668,28285.0,28281.0,0.06351396]
[1680438969736,0.05,28282.0,28281.0,0.06351396]
[1680438971131,0.3007,28283.0,28281.0,0.06351396]
[1680438971337,0.052,28282.0,28280.0,0.06351396]
[1680438971536,0.052,28282.0,28279.0,0.06351396]
[1680438971736,0.3007,28280.0,28277.0,0.06351396]
[1680438971941,0.05,28279.0,28277.0,0.06351396]
[1680438972238,0.3007,28280.0,28277.0,0.06351396]
[1680438972544,0.05,28279.0,28277.0,0.06351396]
[1680438972839,0.053,28279.0,28278.0,0.06351396]
[1680438973243,0.003,28279.0,28277.0,0.11351396]
[1680438973444,0.053,28279.0,28277.0,0.06351396]
[1680438973639,0.003,28279.0,28277.0,0.11351396]
[1680438974040,0.053,28279.0,28277.0,0.11351396]
[1680438974243,0.003,28279.0,28277.0,0.06351396]
[1680438974439,0.003,28279.0,28277.0,0.11351396]
[1680438974644,0.053,28279.0,28277.0,0.06351396]
[1680438975146,0.003,28279.0,28277.0,0.06351396]
[1680438975344,0.053,28279.0,28277.0,0.06351396]
[1680438975844,0.003,28279.0,28277.0,0.06351396]
[1680438977339,0.053,28279.0,28277.0,0.06351396]
[1680438977946,0.053,28279.0,28275.0,0.06351396]
[1680438978146,0.053,28279.0,28274.0,0.11351396]
[1680438978444,0.053,28279.0,28274.0,0.06351396]
[1680438978642,0.053,28279.0,28274.0,0.11351396]
[1680438978847,0.053,28279.0,28274.0,0.06351396]
[1680438979146,0.053,28279.0,28275.0,0.06351396]
[1680438979339,0.053,28279.0,28274.0,0.06351396]
[1680438981845,0.003,28279.0,28275.0,0.05]
[1680438982152,0.053,28279.0,28275.0,0.05]
[1680438982338,0.053,28279.0,28274.0,0.11351396]
[1680438982649,0.053,28279.0,28274.0,0.06351396]
[1680438983243,0.053,28279.0,28273.0,0.36421396]
[1680438985048,0.0001563,28278.0,28273.0,0.36421396]
[1680438985250,0.0001563,28278.0,28274.0,0.05]
[1680438985547,0.0001563,28278.0,28273.0,0.36421396]
[1680438985750,0.0001563,28278.0,28274.0,0.05]
[1680438985951,0.0001563,28278.0,28273.0,0.36421396]
[1680438986157,0.0031563,28278.0,28274.0,0.05]
[1680438986352,0.0031563,28278.0,28273.0,0.36421396]
[1680438988057,0.0001563,28278.0,28273.0,0.36421396]
[1680438988251,0.0031563,28278.0,28274.0,0.05]
[1680438988650,0.0031563,28278.0,28273.0,0.36421396]
[1680438988852,0.0531563,28278.0,28273.0,0.36421396]
[1680438989754,0.0531563,28278.0,28274.0,0.05]
[1680438989952,0.0031563,28278.0,28274.0,0.05]
[1680438990150,0.4,28277.0,28273.0,0.36421396]
[1680438990355,0.4,28277.0,28273.0,0.3007]
[1680438990356,0.05,28276.0,28273.0,0.3007]
[1680438990757,0.3007,28277.0,28274.0,0.05]
[1680438991158,0.003,28276.0,28274.0,0.05]
[1680438991753,0.3027,28277.0,28274.0,0.05]
[1680438992655,0.002,28277.0,28274.0,0.05]
[1680438992863,0.0001563,28278.0,28274.0,0.05]
[1680438993167,0.002,28276.0,28274.0,0.05]
[1680438993353,0.002,28277.0,28274.0,0.05]
[1680438993961,0.001,28278.0,28274.0,0.05]
[1680438994468,0.002,28277.0,28274.0,0.05]
[1680438994853,0.001,28278.0,28274.0,0.05]
[1680438995255,0.001,28278.0,28273.0,0.3007]
[1680438996059,0.3027,28277.0,28273.0,0.3007]
[1680438996257,0.05,28276.0,28273.0,0.3007]
[1680438996858,0.3007,28277.0,28273.0,0.3007]
[1680438996859,0.001,28278.0,28274.0,0.05]
[1680438997061,0.002,28277.0,28274.0,0.05]
[1680438997862,0.002,28276.0,28274.0,0.05]
[1680438998358,0.3007,28280.0,28275.0,0.3007]
[1680438998666,0.00012503,28279.0,28278.0,0.3007]
[1680438998967,0.05,28282.0,28278.0,0.3007]
[1680438999159,0.05,28282.0,28279.0,0.05]
[1680438999360,0.3007,28283.0,28279.0,0.05]
[1680439000258,0.3187,28283.0,28279.0,0.05]
[1680439002067,0.018,28283.0,28281.0,0.3007]
[1680439002368,0.018,28283.0,28282.0,0.05]
[1680439003161,0.3007,28286.0,28282.0,0.05]
[1680439003362,0.018,28283.0,28282.0,0.05]
[1680439003572,0.3002,28288.0,28282.0,0.3507]
[1680439003762,0.3007,28289.0,28285.0,0.3007]
[1680439003962,0.3007,28289.0,28286.0,0.05]
[1680439004559,0.3007,28293.0,28286.0,0.05]
[1680439005371,0.3007,28293.0,28288.0,0.3007]
[1680439005563,0.3197,28293.0,28289.0,0.05]
[1680439006569,0.3197,28293.0,28289.0,0.052]
[1680439007764,0.3107,28293.0,28289.0,0.051]
[1680439008177,0.3007,28293.0,28289.0,0.054]
[1680439008869,0.3007,28295.0,28289.0,0.054]
[1680439009071,0.2999008,28295.0,28291.0,0.3007]
[1680439009275,0.2999008,28295.0,28292.0,0.05]
[1680439009671,0.2999008,28295.0,28291.0,0.3007]
[1680439010573,0.05,28294.0,28291.0,0.3007]
[1680439011168,0.05,28294.0,28291.0,0.3017]
[1680439011669,0.053,28294.0,28291.0,0.3007]
[1680439012373,0.053,28294.0,28288.0,0.3007]
[1680439013273,0.053,28294.0,28289.0,0.05]
[1680439014970,0.053,28294.0,28288.0,0.3007]
[1680439017575,0.003,28294.0,28289.0,0.05]
[1680439017877,0.06,28294.0,28289.0,0.05]
[1680439018174,0.053,28294.0,28289.0,0.05]
[1680439018675,0.053,28294.0,28288.0,0.3007]
[1680439019272,0.053,28294.0,28289.0,0.05]
[1680439022268,0.003,28294.0,28289.0,0.05]
[1680439022579,0.053,28294.0,28289.0,0.05]
[1680439023181,0.003,28294.0,28289.0,0.05]
[1680439023372,0.053,28294.0,28288.0,0.3007]
[1680439023580,0.053,28294.0,28289.0,0.05]
[1680439026177,0.06,28294.0,28289.0,0.001]
[1680439026382,0.06,28294.0,28289.0,0.051]
[1680439028581,0.06,28294.0,28289.0,0.001]
[1680439028985,0.06,28294.0,28289.0,0.051]
[1680439029584,0.06,28294.0,28289.0,0.001]
[1680439030186,0.06,28294.0,28289.0,0.051]
[1680439031087,0.06,28294.0,28289.0,0.001]
[1680439031484,0.06,28294.0,28289.0,0.051]
[1680439032483,0.06,28294.0,28289.0,0.001]
[1680439032689,0.06,28294.0,28289.0,0.051]
[1680439033387,0.01,28294.0,28289.0,0.051]
[1680439033888,0.06,28294.0,28289.0,0.051]
[1680439034287,0.2999008,28295.0,28289.0,0.05]
[1680439034485,0.022,28294.0,28289.0,0.051]
[1680439034683,0.05,28293.0,28289.0,0.05]
[1680439034881,0.05,28293.0,28289.0,0.051]
[1680439035086,0.059,28294.0,28289.0,0.051]
[1680439035682,0.059,28294.0,28289.0,0.05]
[1680439035891,0.002,28293.0,28289.0,0.05]
[1680439036985,0.002,28293.0,28292.0,0.05]
[1680439037190,0.059,28294.0,28292.0,0.05]
[1680439037489,0.2999008,28295.0,28292.0,0.05]
[1680439037490,0.001,28293.0,28292.0,0.05]
[1680439037689,0.001,28293.0,28291.0,0.3007]
[1680439038200,0.001,28293.0,28292.0,0.05]
[1680439038382,0.05,28294.0,28292.0,0.05]
[1680439038579,0.002,28294.0,28292.0,0.05]
[1680439038783,0.05,28294.0,28292.0,0.05]
[1680439038985,0.001,28293.0,28292.0,0.05]
[1680439039987,0.002,28294.0,28292.0,0.05]
[1680439040188,0.002,28294.0,28292.0,0.3507]
[1680439040488,0.002,28294.0,28293.0,0.05]
[1680439040688,0.05,28298.0,28293.0,0.05]
[1680439040987,0.05,28298.0,28292.0,0.3057]
[1680439041191,0.002,28294.0,28292.0,0.3007]
[1680439041592,0.05,28298.0,28293.0,0.05]
[1680439041793,0.077,28298.0,28293.0,0.051]
[1680439042994,0.002,28294.0,28293.0,0.05]
[1680439043885,0.077,28298.0,28293.0,0.051]
[1680439044189,0.002,28294.0,28293.0,0.05]
[1680439044797,0.002,28294.0,28292.0,0.3007]
[1680439044992,0.002,28294.0,28288.0,0.3007]
[1680439045389,0.052,28294.0,28286.0,0.06351396]
[1680439045588,0.052,28294.0,28287.0,0.11351396]
[1680439045796,0.05,28294.0,28288.0,0.05]
[1680439046096,0.05,28294.0,28293.0,0.001]
[1680439046298,0.059,28294.0,28288.0,0.05]
[1680439046893,0.059,28294.0,28288.0,0.051]
[1680439047096,0.059,28294.0,28288.0,0.11451396]
[1680439047294,0.059,28294.0,28288.0,0.06451396]
[1680439047497,0.3007,28289.0,28288.0,0.001]
[1680439049099,0.3027,28289.0,28288.0,0.009]
[1680439049995,0.3027,28289.0,28288.0,0.001]
[1680439049996,0.3227,28289.0,28288.0,0.001]
[1680439051100,0.05,28288.0,28283.0,0.06351396]
[1680439051301,0.3007,28284.0,28281.0,0.06351396]
[1680439051498,0.05,28283.0,28281.0,0.06351396]
[1680439052704,0.051,28283.0,28281.0,0.008]
[1680439053001,0.052,28283.0,28279.0,0.06351396]
[1680439053405,0.065,28283.0,28281.0,0.001]
[1680439053795,0.065,28283.0,28277.0,0.06351396]
[1680439053796,0.05,28281.0,28277.0,0.06351396]
[1680439054007,0.3007,28278.0,28277.0,0.06351396]
[1680439054203,0.3008563,28278.0,28276.0,0.06351396]
[1680439054399,0.05,28277.0,28276.0,0.06351396]
[1680439054594,0.05,28277.0,28276.0,0.06324756]
[1680439054802,0.3008563,28278.0,28274.0,0.05]
[1680439055606,0.002,28277.0,28276.0,0.007]
[1680439055810,0.052,28277.0,28276.0,0.007]
[1680439056098,0.3018563,28278.0,28274.0,0.057]
[1680439056304,0.05,28277.0,28274.0,0.057]
[1680439056507,0.052,28277.0,28276.0,0.007]
[1680439057308,0.052,28277.0,28272.0,0.08419813]
[1680439057503,0.05,28274.0,28272.0,0.08419813]
[1680439057702,0.05,28276.0,28272.0,0.05]
[1680439057897,0.05,28276.0,28274.0,0.001]
[1680439058308,0.05,28276.0,28272.0,0.05]
[1680439058511,0.003,28274.0,28272.0,0.051]
[1680439058806,0.05,28276.0,28271.0,0.3007]
[1680439059112,0.3007,28275.0,28274.0,0.001]
[1680439059298,0.003,28274.0,28272.0,0.051]
[1680439059503,0.053,28274.0,28272.0,0.051]
[1680439059703,0.05,28274.0,28271.0,0.3007]
[1680439059899,0.05,28274.0,28271.0,0.3017]
[1680439060108,0.00031264,28273.0,28271.0,0.3017]
[1680439061103,0.00031264,28273.0,28272.0,0.001]
[1680439061407,0.00031264,28273.0,28271.0,0.3007]
[1680439061609,0.00331264,28273.0,28271.0,0.3017]
[1680439062008,0.00331264,28273.0,28272.0,0.001]
[1680439062208,0.05331264,28273.0,28272.0,0.001]
[1680439062605,0.05331264,28273.0,28271.0,0.001]
[1680439063205,0.00331264,28273.0,28271.0,0.001]
[1680439063908,0.00331264,28273.0,28272.0,0.001]
[1680439064509,0.00331264,28273.0,28271.0,0.001]
[1680439064902,0.00331264,28273.0,28272.0,0.001]
[1680439065413,0.00331264,28273.0,28269.0,0.05]
[1680439065599,0.00331264,28273.0,28271.0,0.001]
[1680439067011,0.00331264,28273.0,28272.0,0.001]
[1680439067407,0.00031264,28273.0,28271.0,0.001]
[1680439067614,0.00331264,28273.0,28271.0,0.001]
[1680439068015,0.00331264,28273.0,28272.0,0.001]
[1680439068613,0.00331264,28273.0,28271.0,0.001]
[1680439069714,0.00331264,28273.0,28272.0,0.001]
[1680439070206,0.00231264,28273.0,28271.0,0.001]
[1680439071610,0.00031264,28273.0,28269.0,0.05]
[1680439071913,0.00231264,28273.0,28272.0,0.001]
[1680439072914,0.00231264,28273.0,28271.0,0.001]
[1680439073314,0.00231264,28273.0,28272.0,0.001]
[1680439073715,0.00231264,28273.0,28271.0,0.001]
[1680439074314,0.00231264,28273.0,28272.0,0.001]
[1680439075312,0.00231264,28273.0,28272.0,0.051]
[1680439075513,0.00031264,28273.0,28272.0,0.05]
[1680439075721,0.002,28273.0,28272.0,0.05]
[1680439075910,0.05,28274.0,28272.0,0.05]
[1680439076110,0.00231264,28273.0,28272.0,0.051]
[1680439076619,0.3007,28281.0,28273.0,0.05]
[1680439077019,0.3007,28281.0,28275.0,0.3007]
[1680439077317,0.3248,28283.0,28278.0,0.3007]
[1680439077615,0.3007,28285.0,28279.0,0.05]
[1680439078818,0.05,28284.0,28279.0,0.05]
[1680439079612,0.05,28284.0,28279.0,0.052]
[1680439080018,0.062,28284.0,28279.0,0.051]
[1680439081117,0.062,28284.0,28279.0,0.001]
[1680439081414,0.062,28284.0,28279.0,0.051]
[1680439082121,0.062,28284.0,28279.0,0.001]
[1680439082814,0.062,28284.0,28279.0,0.051]
[1680439083013,0.062,28284.0,28279.0,0.001]
[1680439083209,0.062,28284.0,28279.0,0.051]
[1680439083616,0.062,28284.0,28279.0,0.001]
[1680439084015,0.061667,28284.0,28279.0,0.051]
[1680439084217,0.061667,28284.0,28279.0,0.001]
[1680439085017,0.061667,28284.0,28279.0,0.051]
[1680439085221,0.061667,28284.0,28279.0,0.001]
[1680439091820,0.061667,28284.0,28279.0,0.051]
[1680439092023,0.061667,28284.0,28279.0,0.001]
[1680439096929,0.061667,28284.0,28279.0,0.051]
[1680439097325,0.062,28284.0,28279.0,0.051]
[1680439097532,0.012,28284.0,28279.0,0.051]
[1680439103341,0.012,28284.0,28281.0,0.3007]
[1680439103645,0.012,28284.0,28282.0,0.05]
[1680439105736,0.05,28287.0,28282.0,0.05]
[1680439105944,0.012,28284.0,28282.0,0.05]
[1680439106247,0.012,28284.0,28282.0,0.001]
[1680439106442,0.012,28284.0,28282.0,0.051]
[1680439106641,0.012,28284.0,28282.0,0.001]
[1680439106840,0.05,28287.0,28281.0,0.3007]
[1680439107041,0.005,28284.0,28282.0,0.05]
[1680439108549,0.005,28284.0,28281.0,0.3007]
[1680439108743,0.005,28284.0,28279.0,0.05]
[1680439109048,0.055,28284.0,28279.0,0.05]
[1680439109450,0.055,28284.0,28278.0,0.3007]
[1680439109653,0.3007,28282.0,28276.0,0.38489813]
[1680439109842,0.05,28281.0,28275.0,0.08419813]
[1680439110038,0.05,28281.0,28276.0,0.05]
[1680439110950,0.05,28281.0,28274.0,0.08419813]
[1680439110951,0.6014,28278.0,28274.0,0.08419813]
[1680439111157,0.3007,28275.0,28271.0,0.41049813]
[1680439111453,0.05,28274.0,28271.0,0.08419813]
[1680439111750,0.05,28274.0,28270.0,0.38489813]
[1680439112250,0.05,28274.0,28271.0,0.021]
[1680439112652,0.05,28274.0,28271.0,0.071]
[1680439112842,0.05,28274.0,28271.0,0.021]
[1680439113040,0.051,28274.0,28270.0,0.40989813]
[1680439113347,0.05,28274.0,28270.0,0.38489813]
[1680439113547,0.051,28274.0,28271.0,0.075]
[1680439113741,0.051,28274.0,28271.0,0.025]
[1680439114145,0.051,28274.0,28271.0,0.0749334]
[1680439114551,0.001,28274.0,28272.0,0.06347252]
[1680439114756,0.001,28274.0,28273.0,0.05]
[1680439114952,0.051,28274.0,28273.0,0.05]
[1680439115158,0.001,28274.0,28272.0,0.06347252]
[1680439115649,0.001,28274.0,28273.0,0.025]
[1680439116051,0.001,28274.0,28273.0,0.075]
[1680439116349,0.3007,28275.0,28273.0,0.05]
[1680439116545,0.001,28274.0,28273.0,0.05]
[1680439117051,0.001,28274.0,28272.0,0.08847252]
[1680439117450,0.001,28274.0,28272.0,0.06347252]
[1680439117748,0.001,28274.0,28273.0,0.075]
[1680439118057,0.001,28274.0,28273.0,0.05]
[1680439118353,0.051,28274.0,28272.0,0.08847252]
[1680439118652,0.001,28274.0,28272.0,0.08847252]
[1680439118956,0.001,28274.0,28273.0,0.075]
[1680439119556,0.001,28274.0,28273.0,0.05]
[1680439119758,0.051,28274.0,28272.0,0.08647252]
[1680439119954,0.001,28274.0,28272.0,0.08647252]
[1680439120257,0.001,28274.0,28273.0,0.05]
[1680439120850,0.3007,28275.0,28273.0,0.05]